[Event "Titled Tuesday Blitz May 2 Late 2023"]
[White "Fernandez Siles, Luis"]
[Black "Lopez Perdomo, Juan David"]
[WhiteFideId "2209420"]
[BlackFideId "4405137"]
[WhiteElo "2195"]
[BlackElo "1965"]
[Result "1-0"]
[Round "07"]
[TimeControl "180+2"]
[Date "2023.05.02"]
[WhiteClock "0:00:44"]
[BlackClock "0:00:01"]

1. e4 {[%clk 0:03:00]}  e6 {[%clk 0:02:59]} 2. d4 {[%clk 0:03:00]}  d5 {[%clk 0:02:59]} 3. Nd2 {[%clk 0:03:01]}  Nf6 {[%clk 0:02:59]} 4. Bd3 {[%clk 0:03:00]}  c5 {[%clk 0:02:56]} 5. c3 {[%clk 0:03:00]}  cxd4 {[%clk 0:02:56]} 6. cxd4 {[%clk 0:03:01]}  Nc6 {[%clk 0:02:56]} 7. Ngf3 {[%clk 0:02:59]}  dxe4 {[%clk 0:02:54]} 8. Nxe4 {[%clk 0:02:59]}  Be7 {[%clk 0:02:27]} 9. O-O {[%clk 0:02:58]}  O-O {[%clk 0:02:26]} 10. Nc3 {[%clk 0:02:58]}  Qa5 {[%clk 0:02:06]} 11. Re1 {[%clk 0:02:43]}  Rd8 {[%clk 0:02:04]} 12. Be3 {[%clk 0:02:35]}  Ng4 {[%clk 0:01:33]} 13. Qe2 {[%clk 0:01:51]}  Nxe3 {[%clk 0:01:29]} 14. fxe3 {[%clk 0:01:50]}  e5 {[%clk 0:01:14]} 15. d5 {[%clk 0:01:43]}  Nb4 {[%clk 0:01:15]} 16. Nxe5 {[%clk 0:01:35]}  Bf6 {[%clk 0:00:58]} 17. Nc4 {[%clk 0:01:32]}  Qc7 {[%clk 0:00:25]} 18. e4 {[%clk 0:01:28]}  Nxd3 {[%clk 0:00:17]} 19. Qxd3 {[%clk 0:01:29]}  b6 {[%clk 0:00:12]} 20. e5 {[%clk 0:01:22]}  Ba6 {[%clk 0:00:09]} 21. b3 {[%clk 0:01:19]}  Bxe5 {[%clk 0:00:06]} 22. Rac1 {[%clk 0:01:07]}  Bxc3 {[%clk 0:00:03]} 23. Rxc3 {[%clk 0:01:06]}  Rac8 {[%clk 0:00:03]} 24. Rc2 {[%clk 0:01:01]}  Qc5+ {[%clk 0:00:02]} 25. Qe3 {[%clk 0:00:53]}  Rxd5 {[%clk 0:00:02]} 26. Qxc5 {[%clk 0:00:47]}  Rdxc5 {[%clk 0:00:02]} 27. Rce2 {[%clk 0:00:47]}  g6 {[%clk 0:00:01]} 28. Re8+ {[%clk 0:00:46]}  Kg7 {[%clk 0:00:01]} 29. R8e7 {[%clk 0:00:44]} 1-0


[Site "https://www.chess.com"]

[Event "Titled Tuesday Blitz May 2 Late 2023"]
[White "Broca Jimenez, Fernando"]
[Black "Bueno, Alfeu Junior Varela"]
[WhiteFideId "5104742"]
[BlackFideId "2108879"]
[WhiteElo "2062"]
[BlackElo "2175"]
[Result "0-1"]
[Round "07"]
[TimeControl "180+2"]
[Date "2023.05.02"]
[WhiteClock "0:00:01"]
[BlackClock "0:00:09"]

1. e4 {[%clk 0:02:59]}  e6 {[%clk 0:03:00]} 2. d4 {[%clk 0:02:58]}  d5 {[%clk 0:03:01]} 3. exd5 {[%clk 0:02:58]}  exd5 {[%clk 0:03:02]} 4. Bd3 {[%clk 0:02:57]}  Nc6 {[%clk 0:03:01]} 5. Ne2 {[%clk 0:02:56]}  Qh4 {[%clk 0:03:01]} 6. c3 {[%clk 0:02:54]}  Bd6 {[%clk 0:03:01]} 7. g3 {[%clk 0:02:49]}  Qh5 {[%clk 0:03:01]} 8. Bf4 {[%clk 0:02:46]}  Bxf4 {[%clk 0:02:59]} 9. Nxf4 {[%clk 0:02:42]}  Qxd1+ {[%clk 0:03:00]} 10. Kxd1 {[%clk 0:02:42]}  Bg4+ {[%clk 0:03:01]} 11. Kc2 {[%clk 0:02:37]}  O-O-O {[%clk 0:03:00]} 12. Re1 {[%clk 0:02:33]}  g5 {[%clk 0:02:58]} 13. Ne2 {[%clk 0:02:22]}  h5 {[%clk 0:02:53]} 14. Nd2 {[%clk 0:02:16]}  h4 {[%clk 0:02:52]} 15. f3 {[%clk 0:02:14]}  Be6 {[%clk 0:02:42]} 16. g4 {[%clk 0:02:14]}  Nge7 {[%clk 0:02:42]} 17. h3 {[%clk 0:02:10]}  f5 {[%clk 0:02:33]} 18. b4 {[%clk 0:02:00]}  Rdf8 {[%clk 0:02:23]} 19. b5 {[%clk 0:01:55]}  Na5 {[%clk 0:02:23]} 20. Nf4 {[%clk 0:01:46]}  gxf4 {[%clk 0:02:18]} 21. Rxe6 {[%clk 0:01:46]}  Kd8 {[%clk 0:01:50]} 22. Rae1 {[%clk 0:01:43]}  Rh7 {[%clk 0:01:49]} 23. gxf5 {[%clk 0:01:35]}  Nxf5 {[%clk 0:01:46]} 24. Nb3 {[%clk 0:01:17]}  Nxb3 {[%clk 0:01:32]} 25. Kxb3 {[%clk 0:01:03]}  Rg7 {[%clk 0:01:30]} 26. R1e5 {[%clk 0:01:02]}  Ne3 {[%clk 0:01:26]} 27. c4 {[%clk 0:00:35]}  Rg3 {[%clk 0:01:10]} 28. cxd5 {[%clk 0:00:33]}  Rxf3 {[%clk 0:01:09]} 29. Be4 {[%clk 0:00:34]}  Rxh3 {[%clk 0:01:06]} 30. Kb4 {[%clk 0:00:28]}  f3 {[%clk 0:01:00]} 31. d6 {[%clk 0:00:29]}  f2 {[%clk 0:00:42]} 32. dxc7+ {[%clk 0:00:28]}  Kxc7 {[%clk 0:00:39]} 33. Re7+ {[%clk 0:00:27]}  Kd8 {[%clk 0:00:37]} 34. Bd3 {[%clk 0:00:17]}  Nc2+ {[%clk 0:00:28]} 35. Bxc2 {[%clk 0:00:12]}  f1=Q {[%clk 0:00:28]} 36. R7e6 {[%clk 0:00:05]}  Qf2 {[%clk 0:00:17]} 37. Bb3 {[%clk 0:00:02]}  Qxd4+ {[%clk 0:00:15]} 38. Ka3 {[%clk 0:00:01]}  Rd3 {[%clk 0:00:09]} 39. Rd5+ {[%clk 0:00:01]}  Qxd5 {[%clk 0:00:09]} 0-1


[Site "https://www.chess.com"]

[Event "Titled Tuesday Blitz May 2 Late 2023"]
[White "Marcziter, Dmitrii"]
[Black "Torres Dominguez, David"]
[WhiteFideId "13900765"]
[BlackFideId "2220857"]
[WhiteElo "2162"]
[BlackElo "1999"]
[Result "1-0"]
[Round "07"]
[TimeControl "180+2"]
[Date "2023.05.02"]
[WhiteClock "0:00:30"]
[BlackClock "0:00:01"]

1. e4 {[%clk 0:03:00]}  Nc6 {[%clk 0:02:59]} 2. Bb5 {[%clk 0:02:58]}  e5 {[%clk 0:02:58]} 3. Nf3 {[%clk 0:02:57]}  Nge7 {[%clk 0:02:59]} 4. c3 {[%clk 0:02:55]}  g6 {[%clk 0:02:58]} 5. d4 {[%clk 0:02:55]}  Bg7 {[%clk 0:02:59]} 6. d5 {[%clk 0:02:54]}  a6 {[%clk 0:02:58]} 7. Ba4 {[%clk 0:02:51]}  Na7 {[%clk 0:02:57]} 8. d6 {[%clk 0:02:49]}  cxd6 {[%clk 0:02:57]} 9. Qxd6 {[%clk 0:02:49]}  Nb5 {[%clk 0:02:58]} 10. Qd1 {[%clk 0:02:44]}  Nc7 {[%clk 0:02:46]} 11. O-O {[%clk 0:02:37]}  b5 {[%clk 0:02:45]} 12. Bb3 {[%clk 0:02:37]}  d6 {[%clk 0:02:32]} 13. h3 {[%clk 0:02:35]}  O-O {[%clk 0:02:31]} 14. a4 {[%clk 0:02:34]}  Bb7 {[%clk 0:02:26]} 15. Re1 {[%clk 0:02:34]}  h6 {[%clk 0:01:40]} 16. Nbd2 {[%clk 0:02:31]}  Re8 {[%clk 0:01:37]} 17. Nf1 {[%clk 0:02:30]}  d5 {[%clk 0:01:38]} 18. exd5 {[%clk 0:02:29]}  Nexd5 {[%clk 0:01:38]} 19. Ng3 {[%clk 0:02:19]}  Nb6 {[%clk 0:01:25]} 20. axb5 {[%clk 0:02:12]}  Qxd1 {[%clk 0:01:21]} 21. Bxd1 {[%clk 0:02:08]}  axb5 {[%clk 0:01:19]} 22. Rxa8 {[%clk 0:02:07]}  Bxa8 {[%clk 0:01:18]} 23. Ne4 {[%clk 0:01:59]}  Nc4 {[%clk 0:01:14]} 24. b3 {[%clk 0:01:54]}  Nb6 {[%clk 0:01:10]} 25. Nd6 {[%clk 0:01:49]}  Rd8 {[%clk 0:01:09]} 26. Ba3 {[%clk 0:01:23]}  Bf8 {[%clk 0:00:44]} 27. Bc5 {[%clk 0:01:19]}  Nd7 {[%clk 0:00:20]} 28. Bb4 {[%clk 0:01:13]}  Nd5 {[%clk 0:00:20]} 29. Nxb5 {[%clk 0:01:08]}  Nxb4 {[%clk 0:00:19]} 30. cxb4 {[%clk 0:01:08]}  e4 {[%clk 0:00:11]} 31. Nfd4 {[%clk 0:01:04]}  Ne5 {[%clk 0:00:11]} 32. Bc2 {[%clk 0:00:59]}  Nd3 {[%clk 0:00:09]} 33. Ra1 {[%clk 0:00:55]}  Nxb4 {[%clk 0:00:07]} 34. Bd1 {[%clk 0:00:51]}  Bd5 {[%clk 0:00:06]} 35. Be2 {[%clk 0:00:45]}  Nd3 {[%clk 0:00:05]} 36. Bf1 {[%clk 0:00:41]}  Bg7 {[%clk 0:00:04]} 37. Ra7 {[%clk 0:00:36]}  Nc1 {[%clk 0:00:01]} 38. b4 {[%clk 0:00:30]} 1-0


[Site "https://www.chess.com"]

[Event "Titled Tuesday Blitz May 2 Late 2023"]
[White "Gerbelli Neto, Eduardo"]
[Black "Adel, Sara"]
[WhiteFideId "2103281"]
[BlackFideId "10616764"]
[WhiteElo "2178"]
[BlackElo "1982"]
[Result "1-0"]
[Round "07"]
[TimeControl "180+2"]
[Date "2023.05.02"]
[WhiteClock "0:00:04"]
[BlackClock "0:00:26"]

1. e4 {[%clk 0:03:00]}  c6 {[%clk 0:02:58]} 2. d4 {[%clk 0:03:00]}  d5 {[%clk 0:02:59]} 3. exd5 {[%clk 0:03:01]}  cxd5 {[%clk 0:02:59]} 4. c4 {[%clk 0:03:02]}  dxc4 {[%clk 0:02:57]} 5. Nc3 {[%clk 0:03:02]}  Nf6 {[%clk 0:02:58]} 6. Nf3 {[%clk 0:03:03]}  g6 {[%clk 0:02:59]} 7. Bxc4 {[%clk 0:03:03]}  Bg7 {[%clk 0:03:00]} 8. Qa4+ {[%clk 0:02:53]}  Nbd7 {[%clk 0:02:54]} 9. O-O {[%clk 0:02:45]}  a6 {[%clk 0:02:53]} 10. Re1 {[%clk 0:02:28]}  O-O {[%clk 0:02:52]} 11. Qc2 {[%clk 0:02:27]}  b5 {[%clk 0:02:48]} 12. Bd3 {[%clk 0:02:25]}  Bb7 {[%clk 0:02:48]} 13. Ne5 {[%clk 0:02:25]}  Nb6 {[%clk 0:02:43]} 14. Be3 {[%clk 0:02:21]}  Rc8 {[%clk 0:02:44]} 15. a3 {[%clk 0:02:20]}  Nfd5 {[%clk 0:02:41]} 16. Rad1 {[%clk 0:02:07]}  b4 {[%clk 0:02:34]} 17. axb4 {[%clk 0:02:03]}  Nxb4 {[%clk 0:02:35]} 18. Qe2 {[%clk 0:01:55]}  Nxd3 {[%clk 0:02:34]} 19. Rxd3 {[%clk 0:01:54]}  Nd5 {[%clk 0:02:34]} 20. Bc1 {[%clk 0:01:24]}  a5 {[%clk 0:01:56]} 21. Rh3 {[%clk 0:01:08]}  Nxc3 {[%clk 0:01:44]} 22. bxc3 {[%clk 0:01:09]}  Qd5 {[%clk 0:01:43]} 23. Qg4 {[%clk 0:00:37]}  h5 {[%clk 0:01:32]} 24. Qg5 {[%clk 0:00:11]}  Bh6 {[%clk 0:01:17]} 25. Qg3 {[%clk 0:00:08]}  Rxc3 {[%clk 0:01:17]} 26. Be3 {[%clk 0:00:06]}  Bf4 {[%clk 0:01:05]} 27. Nxg6 {[%clk 0:00:04]}  Bxg3 {[%clk 0:01:04]} 28. Nxe7+ {[%clk 0:00:04]}  Kg7 {[%clk 0:00:56]} 29. Nxd5 {[%clk 0:00:05]}  Bxh2+ {[%clk 0:00:49]} 30. Kxh2 {[%clk 0:00:05]}  Bxd5 {[%clk 0:00:49]} 31. Bh6+ {[%clk 0:00:05]}  Kxh6 {[%clk 0:00:49]} 32. Rxc3 {[%clk 0:00:06]}  a4 {[%clk 0:00:49]} 33. Rc5 {[%clk 0:00:06]}  Bb3 {[%clk 0:00:49]} 34. Re7 {[%clk 0:00:06]}  Rd8 {[%clk 0:00:48]} 35. Re4 {[%clk 0:00:05]}  Kg6 {[%clk 0:00:47]} 36. f3 {[%clk 0:00:05]}  f5 {[%clk 0:00:46]} 37. Rf4 {[%clk 0:00:04]}  Be6 {[%clk 0:00:39]} 38. Rc6 {[%clk 0:00:04]}  Kg5 {[%clk 0:00:38]} 39. Kg3 {[%clk 0:00:03]}  Bd5 {[%clk 0:00:36]} 40. Ra6 {[%clk 0:00:03]}  Bb3 {[%clk 0:00:33]} 41. Rh4 {[%clk 0:00:03]}  Rd5 {[%clk 0:00:26]} 42. f4# {[%clk 0:00:04]} 1-0


[Site "https://www.chess.com"]

[Event "Titled Tuesday Blitz May 2 Late 2023"]
[White "Golubev, Mikhail"]
[Black "Panico, Nick"]
[WhiteFideId "14100983"]
[BlackFideId "2026724"]
[WhiteElo "2374"]
[BlackElo "1982"]
[Result "0-1"]
[Round "07"]
[TimeControl "180+2"]
[Date "2023.05.02"]
[WhiteClock "0:00:01"]
[BlackClock "0:01:10"]

1. e4 {[%clk 0:03:00]}  e6 {[%clk 0:02:59]} 2. d4 {[%clk 0:03:00]}  d5 {[%clk 0:03:00]} 3. Bd3 {[%clk 0:03:00]}  dxe4 {[%clk 0:02:58]} 4. Bxe4 {[%clk 0:03:01]}  Nf6 {[%clk 0:02:58]} 5. Bf3 {[%clk 0:03:01]}  c5 {[%clk 0:02:59]} 6. Ne2 {[%clk 0:03:00]}  Nc6 {[%clk 0:02:59]} 7. Be3 {[%clk 0:03:00]}  e5 {[%clk 0:02:59]} 8. d5 {[%clk 0:01:25]}  Nd4 {[%clk 0:02:58]} 9. Nxd4 {[%clk 0:01:25]}  cxd4 {[%clk 0:02:49]} 10. Bg5 {[%clk 0:01:23]}  h6 {[%clk 0:02:40]} 11. Bxf6 {[%clk 0:01:22]}  gxf6 {[%clk 0:02:38]} 12. O-O {[%clk 0:01:19]}  Bf5 {[%clk 0:02:36]} 13. c3 {[%clk 0:01:11]}  Bc5 {[%clk 0:02:30]} 14. cxd4 {[%clk 0:00:55]}  Bxd4 {[%clk 0:02:30]} 15. Nc3 {[%clk 0:00:55]}  Qd7 {[%clk 0:02:16]} 16. Ne4 {[%clk 0:00:45]}  Bxe4 {[%clk 0:02:06]} 17. Bxe4 {[%clk 0:00:45]}  f5 {[%clk 0:02:06]} 18. Bc2 {[%clk 0:00:21]}  O-O-O {[%clk 0:02:04]} 19. Qh5 {[%clk 0:00:07]}  e4 {[%clk 0:01:35]} 20. Rad1 {[%clk 0:00:06]}  Be5 {[%clk 0:01:34]} 21. d6 {[%clk 0:00:05]}  Kb8 {[%clk 0:01:32]} 22. Bb3 {[%clk 0:00:05]}  f6 {[%clk 0:01:29]} 23. Rd5 {[%clk 0:00:05]}  Qc6 {[%clk 0:01:26]} 24. Rfd1 {[%clk 0:00:04]}  Rd7 {[%clk 0:01:26]} 25. Rxe5 {[%clk 0:00:03]}  fxe5 {[%clk 0:01:23]} 26. Qxf5 {[%clk 0:00:03]}  Rhd8 {[%clk 0:01:22]} 27. Qxe5 {[%clk 0:00:02]}  Rxd6 {[%clk 0:01:20]} 28. h3 {[%clk 0:00:02]}  a6 {[%clk 0:01:18]} 29. Re1 {[%clk 0:00:01]}  Ka7 {[%clk 0:01:12]} 30. Qxe4 {[%clk 0:00:01]}  Qc5 {[%clk 0:01:11]} 31. Qe3 {[%clk 0:00:02]}  Qxe3 {[%clk 0:01:10]} 32. Rxe3 {[%clk 0:00:01]}  Rd2 {[%clk 0:01:10]} 33. Re6 {[%clk 0:00:01]}  Rxb2 {[%clk 0:01:10]} 0-1


[Site "https://www.chess.com"]

[Event "Titled Tuesday Blitz May 2 Late 2023"]
[White "Harish, Neeraj"]
[Black "Joubert, Dantelle"]
[WhiteFideId "30958130"]
[BlackFideId "14310813"]
[WhiteElo "1965"]
[BlackElo "1507"]
[Result "1-0"]
[Round "07"]
[TimeControl "180+2"]
[Date "2023.05.02"]
[WhiteClock "0:01:47"]
[BlackClock "0:00:52"]

1. e4 {[%clk 0:03:00]}  d5 {[%clk 0:02:59]} 2. exd5 {[%clk 0:03:00]}  Qxd5 {[%clk 0:02:57]} 3. Nc3 {[%clk 0:03:00]}  Qd6 {[%clk 0:02:56]} 4. d4 {[%clk 0:02:59]}  Nf6 {[%clk 0:02:46]} 5. Nf3 {[%clk 0:02:58]}  Bg4 {[%clk 0:02:36]} 6. h3 {[%clk 0:02:55]}  Bh5 {[%clk 0:02:34]} 7. g4 {[%clk 0:02:51]}  Bg6 {[%clk 0:02:33]} 8. Ne5 {[%clk 0:02:47]}  c6 {[%clk 0:02:31]} 9. h4 {[%clk 0:02:41]}  Be4 {[%clk 0:02:27]} 10. f3 {[%clk 0:02:37]}  Bd5 {[%clk 0:02:26]} 11. Bf4 {[%clk 0:02:32]}  Qd8 {[%clk 0:02:24]} 12. Bd3 {[%clk 0:02:19]}  e6 {[%clk 0:02:22]} 13. Qe2 {[%clk 0:02:18]}  Bb4 {[%clk 0:02:17]} 14. h5 {[%clk 0:02:13]}  h6 {[%clk 0:02:07]} 15. a3 {[%clk 0:02:12]}  Bxc3+ {[%clk 0:01:47]} 16. bxc3 {[%clk 0:02:13]}  Nbd7 {[%clk 0:01:44]} 17. c4 {[%clk 0:02:13]}  Nxe5 {[%clk 0:01:28]} 18. dxe5 {[%clk 0:02:10]}  Bxc4 {[%clk 0:01:21]} 19. Bxc4 {[%clk 0:02:07]}  Qd4 {[%clk 0:01:21]} 20. Rd1 {[%clk 0:01:57]}  Qxf4 {[%clk 0:01:19]} 21. exf6 {[%clk 0:01:58]}  Qxf6 {[%clk 0:01:12]} 22. O-O {[%clk 0:01:54]}  O-O {[%clk 0:01:06]} 23. Qe4 {[%clk 0:01:50]}  g6 {[%clk 0:00:52]} 24. hxg6 {[%clk 0:01:47]} 1-0


[Site "https://www.chess.com"]

[Event "Titled Tuesday Blitz May 2 Late 2023"]
[White "Georg, Heinz"]
[Black "Munoz Misselis, Nelson Carlos"]
[WhiteFideId "4607295"]
[BlackFideId "6601790"]
[WhiteElo "2147"]
[BlackElo "1749"]
[Result "1-0"]
[Round "07"]
[TimeControl "180+2"]
[Date "2023.05.02"]
[WhiteClock "0:02:26"]
[BlackClock "0:02:07"]

1. b4 {[%clk 0:03:00]}  e5 {[%clk 0:02:48]} 2. Bb2 {[%clk 0:03:00]}  Nf6 {[%clk 0:02:44]} 3. Bxe5 {[%clk 0:02:59]}  Be7 {[%clk 0:02:32]} 4. a3 {[%clk 0:02:57]}  a5 {[%clk 0:02:32]} 5. b5 {[%clk 0:02:57]}  d6 {[%clk 0:02:30]} 6. Bb2 {[%clk 0:02:55]}  O-O {[%clk 0:02:30]} 7. Nf3 {[%clk 0:02:53]}  c5 {[%clk 0:02:30]} 8. c4 {[%clk 0:02:51]}  b6 {[%clk 0:02:28]} 9. g3 {[%clk 0:02:42]}  Bb7 {[%clk 0:02:25]} 10. Bg2 {[%clk 0:02:41]}  Nbd7 {[%clk 0:02:17]} 11. O-O {[%clk 0:02:39]}  Re8 {[%clk 0:02:18]} 12. e3 {[%clk 0:02:39]}  Bf8 {[%clk 0:02:19]} 13. d4 {[%clk 0:02:36]}  cxd4 {[%clk 0:02:14]} 14. Nxd4 {[%clk 0:02:34]}  Nc5 {[%clk 0:02:14]} 15. Bxb7 {[%clk 0:02:32]}  Nxb7 {[%clk 0:02:13]} 16. Nc6 {[%clk 0:02:32]}  Qd7 {[%clk 0:02:12]} 17. Bxf6 {[%clk 0:02:31]}  Nc5 {[%clk 0:02:07]} 18. Bd4 {[%clk 0:02:26]} 1-0


[Site "https://www.chess.com"]

[Event "Titled Tuesday Blitz May 2 Late 2023"]
[White "Kapp, Martin"]
[Black "Wang, Alexander J"]
[WhiteFideId "24651680"]
[BlackFideId "30955270"]
[WhiteElo "2177"]
[BlackElo "1815"]
[Result "1-0"]
[Round "07"]
[TimeControl "180+2"]
[Date "2023.05.02"]
[WhiteClock "0:00:09"]
[BlackClock "0:00:17"]

1. d4 {[%clk 0:02:54]}  d5 {[%clk 0:02:58]} 2. c4 {[%clk 0:02:54]}  e6 {[%clk 0:02:58]} 3. Nc3 {[%clk 0:02:55]}  c5 {[%clk 0:02:57]} 4. Nf3 {[%clk 0:02:52]}  Nc6 {[%clk 0:02:55]} 5. cxd5 {[%clk 0:02:51]}  exd5 {[%clk 0:02:52]} 6. g3 {[%clk 0:02:51]}  Nf6 {[%clk 0:02:47]} 7. Bg2 {[%clk 0:02:51]}  Be7 {[%clk 0:02:47]} 8. O-O {[%clk 0:02:49]}  O-O {[%clk 0:02:43]} 9. b3 {[%clk 0:02:49]}  a6 {[%clk 0:02:37]} 10. dxc5 {[%clk 0:02:47]}  Bxc5 {[%clk 0:02:25]} 11. Bb2 {[%clk 0:02:46]}  b5 {[%clk 0:02:08]} 12. e3 {[%clk 0:02:45]}  Be6 {[%clk 0:01:59]} 13. Ne2 {[%clk 0:02:35]}  Ne4 {[%clk 0:01:55]} 14. Rc1 {[%clk 0:02:33]}  Rc8 {[%clk 0:01:41]} 15. Nd2 {[%clk 0:02:21]}  Nxd2 {[%clk 0:01:26]} 16. Qxd2 {[%clk 0:02:18]}  Bb6 {[%clk 0:01:26]} 17. Nf4 {[%clk 0:02:08]}  Ne7 {[%clk 0:01:19]} 18. Ba1 {[%clk 0:02:00]}  Qd7 {[%clk 0:01:14]} 19. Qb2 {[%clk 0:01:20]}  f6 {[%clk 0:01:11]} 20. Qa3 {[%clk 0:01:18]}  a5 {[%clk 0:01:00]} 21. b4 {[%clk 0:01:10]}  a4 {[%clk 0:00:58]} 22. Qd3 {[%clk 0:01:07]}  Bf7 {[%clk 0:00:56]} 23. Be4 {[%clk 0:00:50]}  f5 {[%clk 0:00:52]} 24. Bf3 {[%clk 0:00:45]}  Rxc1 {[%clk 0:00:48]} 25. Rxc1 {[%clk 0:00:45]}  Rc8 {[%clk 0:00:45]} 26. Qb1 {[%clk 0:00:39]}  Ng6 {[%clk 0:00:38]} 27. Rxc8+ {[%clk 0:00:35]}  Qxc8 {[%clk 0:00:35]} 28. Qb2 {[%clk 0:00:35]}  Qf8 {[%clk 0:00:28]} 29. Nxd5 {[%clk 0:00:23]}  Bd8 {[%clk 0:00:25]} 30. a3 {[%clk 0:00:21]}  Bxd5 {[%clk 0:00:17]} 31. Bxd5+ {[%clk 0:00:20]}  Kh8 {[%clk 0:00:17]} 32. Qc2 {[%clk 0:00:14]}  Bf6 {[%clk 0:00:16]} 33. Bxf6 {[%clk 0:00:14]}  Qxf6 {[%clk 0:00:17]} 34. Qc8+ {[%clk 0:00:13]}  Qf8 {[%clk 0:00:15]} 35. Qxf8+ {[%clk 0:00:12]}  Nxf8 {[%clk 0:00:16]} 36. Bc6 {[%clk 0:00:12]}  Ne6 {[%clk 0:00:17]} 37. Bxb5 {[%clk 0:00:12]}  Nc7 {[%clk 0:00:17]} 38. Bxa4 {[%clk 0:00:12]}  Nd5 {[%clk 0:00:18]} 39. b5 {[%clk 0:00:10]}  Nc3 {[%clk 0:00:17]} 40. b6 {[%clk 0:00:09]} 1-0


[Site "https://www.chess.com"]

[Event "Titled Tuesday Blitz May 2 Late 2023"]
[White "Cooklev, Steven"]
[Black "Ismayilova, Khanim"]
[WhiteFideId "2050552"]
[BlackFideId "13429019"]
[WhiteElo "2039"]
[BlackElo "1633"]
[Result "1-0"]
[Round "07"]
[TimeControl "180+2"]
[Date "2023.05.02"]
[WhiteClock "0:00:17"]
[BlackClock "0:00:01"]

1. e4 {[%clk 0:03:00]}  c5 {[%clk 0:02:59]} 2. Nf3 {[%clk 0:03:00]}  Nc6 {[%clk 0:03:00]} 3. Nc3 {[%clk 0:03:00]}  e6 {[%clk 0:02:51]} 4. d4 {[%clk 0:02:59]}  cxd4 {[%clk 0:02:42]} 5. Nxd4 {[%clk 0:03:00]}  Bc5 {[%clk 0:02:42]} 6. Nb3 {[%clk 0:02:56]}  Bb4 {[%clk 0:02:35]} 7. Qd3 {[%clk 0:02:37]}  Nf6 {[%clk 0:02:32]} 8. Be2 {[%clk 0:02:26]}  d5 {[%clk 0:01:52]} 9. exd5 {[%clk 0:02:17]}  exd5 {[%clk 0:01:53]} 10. O-O {[%clk 0:02:15]}  Bxc3 {[%clk 0:01:49]} 11. Qxc3 {[%clk 0:02:12]}  O-O {[%clk 0:01:48]} 12. Bf3 {[%clk 0:01:43]}  Bg4 {[%clk 0:01:35]} 13. Bg5 {[%clk 0:01:40]}  d4 {[%clk 0:01:02]} 14. Qd3 {[%clk 0:01:25]}  Ne5 {[%clk 0:01:01]} 15. Qxd4 {[%clk 0:01:11]}  Nxf3+ {[%clk 0:00:52]} 16. gxf3 {[%clk 0:01:09]}  Bxf3 {[%clk 0:00:49]} 17. Bxf6 {[%clk 0:01:07]}  Qxf6 {[%clk 0:00:30]} 18. Qxf6 {[%clk 0:01:06]}  gxf6 {[%clk 0:00:31]} 19. Nd4 {[%clk 0:01:04]}  Be4 {[%clk 0:00:24]} 20. Rfe1 {[%clk 0:01:03]}  f5 {[%clk 0:00:22]} 21. f3 {[%clk 0:00:56]}  Bd5 {[%clk 0:00:20]} 22. Kf2 {[%clk 0:00:45]}  Rac8 {[%clk 0:00:12]} 23. c3 {[%clk 0:00:43]}  f4 {[%clk 0:00:11]} 24. Nf5 {[%clk 0:00:38]}  Kh8 {[%clk 0:00:09]} 25. a3 {[%clk 0:00:24]}  Be6 {[%clk 0:00:07]} 26. Nd4 {[%clk 0:00:23]}  Bd5 {[%clk 0:00:05]} 27. Re5 {[%clk 0:00:21]}  Rcd8 {[%clk 0:00:04]} 28. Rae1 {[%clk 0:00:21]}  f6 {[%clk 0:00:03]} 29. Re7 {[%clk 0:00:20]}  b6 {[%clk 0:00:03]} 30. Rxa7 {[%clk 0:00:20]}  Rfe8 {[%clk 0:00:03]} 31. Ree7 {[%clk 0:00:20]}  Rxe7 {[%clk 0:00:02]} 32. Rxe7 {[%clk 0:00:21]}  Bc4 {[%clk 0:00:01]} 33. h4 {[%clk 0:00:18]}  b5 {[%clk 0:00:01]} 34. h5 {[%clk 0:00:18]}  Rd5 {[%clk 0:00:01]} 35. h6 {[%clk 0:00:17]} 1-0


[Site "https://www.chess.com"]

[Event "Titled Tuesday Blitz May 2 Late 2023"]
[White "Dias, Joao Batista"]
[Black "Sailer, Mike"]
[WhiteFideId "2108240"]
[BlackFideId "2012901"]
[WhiteElo "1907"]
[BlackElo "2109"]
[Result "1-0"]
[Round "07"]
[TimeControl "180+2"]
[Date "2023.05.02"]
[WhiteClock "0:01:58"]
[BlackClock "0:00:52"]

1. e4 {[%clk 0:03:00]}  d5 {[%clk 0:02:58]} 2. exd5 {[%clk 0:03:00]}  Qxd5 {[%clk 0:02:58]} 3. Nc3 {[%clk 0:03:00]}  Qd6 {[%clk 0:02:59]} 4. Nf3 {[%clk 0:03:01]}  Nf6 {[%clk 0:02:59]} 5. h3 {[%clk 0:03:01]}  c6 {[%clk 0:03:00]} 6. d4 {[%clk 0:02:59]}  Bf5 {[%clk 0:03:00]} 7. Be3 {[%clk 0:03:00]}  e6 {[%clk 0:02:58]} 8. Qd2 {[%clk 0:03:00]}  Nbd7 {[%clk 0:02:52]} 9. O-O-O {[%clk 0:03:00]}  Nb6 {[%clk 0:02:51]} 10. g4 {[%clk 0:02:56]}  Bg6 {[%clk 0:02:51]} 11. Nh4 {[%clk 0:02:54]}  Be7 {[%clk 0:02:48]} 12. Nxg6 {[%clk 0:02:54]}  hxg6 {[%clk 0:02:47]} 13. Bg2 {[%clk 0:02:50]}  O-O-O {[%clk 0:02:44]} 14. Kb1 {[%clk 0:02:48]}  Nbd5 {[%clk 0:02:35]} 15. Nxd5 {[%clk 0:02:46]}  Nxd5 {[%clk 0:02:30]} 16. Bxd5 {[%clk 0:02:45]}  Qxd5 {[%clk 0:02:19]} 17. Rhe1 {[%clk 0:02:39]}  Rxh3 {[%clk 0:02:12]} 18. Qe2 {[%clk 0:02:29]}  Kb8 {[%clk 0:01:51]} 19. a3 {[%clk 0:02:27]}  Rdh8 {[%clk 0:01:33]} 20. c4 {[%clk 0:02:24]}  Qe4+ {[%clk 0:01:27]} 21. Ka2 {[%clk 0:02:24]}  Bd6 {[%clk 0:01:14]} 22. Rd3 {[%clk 0:02:15]}  Rh1 {[%clk 0:01:08]} 23. Rxh1 {[%clk 0:02:05]}  Rxh1 {[%clk 0:01:08]} 24. f3 {[%clk 0:01:59]}  Rh2 {[%clk 0:00:54]} 25. Qxh2 {[%clk 0:01:59]}  Bxh2 {[%clk 0:00:52]} 26. fxe4 {[%clk 0:01:58]} 1-0


[Site "https://www.chess.com"]